bitfinex/quotes_SOLUSD_20240628
["timestamp","ask_amount","ask_price","bid_price","bid_amount"]
[1719614980843,16.99,140.63,140.58,16.99]
[1719614981043,16.99,140.63,140.58,7.129]
[1719614981638,16.99,140.63,140.56,22.3923]
[1719614981956,16.99,140.6,140.56,15.8945]
[1719614982132,16.99,140.6,140.56,23.0235]
[1719614984055,16.99,140.6,140.56,7.129]
[1719614985459,36.99,140.59,140.52,26.94823903]
[1719614985755,16.99,140.59,140.55,7.129]
[1719614986152,120.0,140.62,140.55,7.129]
[1719614986459,16.99,140.58,140.55,7.129]
[1719614986659,16.99,140.58,140.54,7.129]
[1719614986954,16.99,140.57,140.53,7.129]
[1719614987543,16.99,140.57,140.52,32.0955]
[1719614987736,115.0197,140.58,140.5,0.02689586]
[1719614987938,115.0197,140.58,140.5,7.15589586]
[1719614987939,16.99,140.54,140.5,7.15589586]
[1719614988353,16.99,140.54,140.5,0.02689586]
[1719614989258,16.99,140.53,140.5,0.02689586]
[1719614990055,16.99,140.52,140.5,0.02689586]
[1719614990362,16.99,140.51,140.5,0.02689586]
[1719614990578,36.99,140.51,140.5,0.02689586]
[1719614992571,100.0,140.5,140.43,0.8359607]
[1719614992737,16.99,140.47,140.43,0.8359607]
[1719614993255,100.0,140.5,140.43,0.8359607]
[1719614993558,16.99,140.47,140.43,0.8359607]
[1719614994760,20.0,140.49,140.43,0.8359607]
[1719614994961,20.0,140.51,140.43,17.8259607]
[1719614995171,20.0,140.51,140.44,16.99]
[1719614995172,16.99,140.49,140.44,16.99]
[1719614995458,20.0,140.48,140.44,16.99]
[1719614995839,20.0,140.48,140.44,24.119]
[1719614996363,16.99,140.52,140.47,16.99]
[1719614999655,16.99,140.5,140.46,7.129]
[1719614999855,16.99,140.51,140.46,7.129]
[1719615000052,20.0,140.5,140.46,7.129]
[1719615000454,20.0,140.5,140.46,24.119]
[1719615001742,16.99,140.51,140.46,24.119]
[1719615001944,182.9797,140.56,140.46,24.119]
[1719615001945,20.0,140.5,140.46,24.119]
[1719615002154,20.0,140.5,140.48,7.129]
[1719615002565,20.0,140.51,140.48,7.129]
[1719615002770,36.99,140.51,140.46,16.99]
[1719615003149,16.99,140.5,140.45,38.4013]
[1719615003550,16.99,140.5,140.46,16.99]
[1719615003766,36.99,140.51,140.46,16.99]
[1719615003963,20.0,140.51,140.45,21.4113]
[1719615004166,16.99,140.53,140.48,7.129]
[1719615004359,20.0,140.52,140.48,16.99]
[1719615004559,20.0,140.52,140.45,21.4113]
[1719615004560,20.0,140.52,140.47,16.99]
[1719615004771,20.0,140.52,140.48,16.99]
[1719615004978,20.0,140.55,140.48,16.99]
[1719615005283,16.99,140.53,140.46,7.129]
[1719615005490,20.0,140.52,140.48,7.129]
[1719615005779,36.99,140.52,140.48,7.129]
[1719615006551,20.0,140.52,140.48,7.129]
[1719615006771,115.0197,140.56,140.5,16.99]
[1719615006772,20.0,140.55,140.5,16.99]
[1719615006951,20.0,140.55,140.51,7.129]
[1719615007165,36.99,140.55,140.51,7.129]
[1719615007565,16.99,140.54,140.49,16.99]
[1719615007780,20.0,140.53,140.49,16.99]
[1719615009288,36.99,140.53,140.49,7.129]
[1719615009447,16.99,140.51,140.45,15.1055]
[1719615009648,36.99,140.5,140.43,0.8359607]
[1719615009884,16.99,140.5,140.44,16.99]
[1719615010185,20.0,140.49,140.44,16.99]
[1719615010382,20.0,140.49,140.45,7.129]
[1719615010985,20.0,140.49,140.45,16.99]
[1719615011189,20.0,140.5,140.43,0.8359607]
[1719615011361,20.0,140.5,140.46,24.119]
[1719615012257,16.99,140.49,140.44,16.99]
[1719615012455,16.99,140.49,140.44,24.119]
[1719615014482,36.99,140.5,140.45,24.119]
[1719615014681,20.0,140.5,140.45,24.119]
[1719615014996,20.0,140.5,140.47,16.99]
[1719615015174,16.99,140.52,140.47,16.99]
[1719615015486,20.0,140.51,140.47,16.99]
[1719615017723,20.0,140.51,140.48,16.99]
[1719615017879,20.0,140.53,140.46,24.119]
[1719615018203,16.99,140.51,140.46,24.119]
[1719615018908,100.0,140.52,140.43,0.8359607]
[1719615019079,16.99,140.49,140.44,16.99]
[1719615019277,20.0,140.48,140.43,17.8259607]
[1719615019897,20.0,140.48,140.44,16.99]
[1719615020206,20.0,140.48,140.43,0.8359607]
[1719615020207,20.0,140.48,140.45,16.99]
[1719615020504,20.0,140.49,140.46,16.99]
[1719615020713,20.0,140.5,140.46,16.99]
[1719615021302,20.0,140.5,140.43,0.8359607]
[1719615021477,20.0,140.5,140.45,16.99]
[1719615023010,36.99,140.5,140.45,16.99]
[1719615023312,36.99,140.5,140.44,16.99]
[1719615025048,16.99,140.49,140.44,16.99]
[1719615025231,20.0,140.48,140.44,16.99]
[1719615027952,20.0,140.48,140.45,16.99]
[1719615028118,20.0,140.49,140.45,16.99]
[1719615029938,20.0,140.49,140.45,24.119]
[1719615030121,20.0,140.49,140.43,0.8359607]
[1719615030448,16.99,140.52,140.47,16.99]
[1719615030648,20.0,140.51,140.47,16.99]
[1719615031210,20.0,140.51,140.46,24.119]
[1719615032041,22.4474,140.55,140.48,16.99]
[1719615032346,16.99,140.56,140.5,16.99]
[1719615032721,16.99,140.53,140.43,17.2995607]
[1719615032913,16.99,140.51,140.46,16.99]
[1719615033116,16.99,140.5,140.45,16.99]
[1719615033314,100.0,140.51,140.43,17.2995607]
[1719615033537,16.99,140.48,140.43,0.8359607]
[1719615033750,36.99,140.47,140.43,0.8359607]
[1719615033919,20.0,140.46,140.43,0.8359607]
[1719615034115,36.99,140.46,140.43,0.8359607]
[1719615034347,16.99,140.44,140.43,0.8359607]
[1719615034640,36.99,140.44,140.43,0.8359607]
[1719615034810,20.0,140.44,140.43,0.8359607]
[1719615041140,15.9338,140.48,140.43,0.8359607]
[1719615041449,16.99,140.46,140.43,0.8359607]
[1719615041626,20.0,140.45,140.43,0.8359607]
[1719615044842,20.0,140.46,140.43,0.8359607]
[1719615045044,36.99,140.46,140.43,0.8359607]
[1719615046936,16.99,140.45,140.43,0.8359607]
[1719615047131,20.0,140.44,140.43,0.8359607]
[1719615073773,115.8375,140.51,140.43,0.8359607]
[1719615073945,115.8375,140.51,140.45,16.99]
[1719615073946,32.8275,140.51,140.45,16.99]
[1719615074654,32.8275,140.51,140.43,0.8359607]
[1719615075172,16.99,140.5,140.45,24.119]
[1719615075471,20.0,140.49,140.45,24.119]
[1719615078073,20.0,140.5,140.45,16.99]
[1719615078244,20.0,140.5,140.46,7.129]
[1719615080671,20.0,140.5,140.46,24.119]
[1719615081961,16.99,140.51,140.46,24.119]
[1719615082277,20.0,140.5,140.46,24.119]
[1719615082851,16.99,140.51,140.46,24.119]
[1719615083044,20.0,140.5,140.43,0.8359607]
[1719615083245,20.0,140.5,140.43,7.9649607]
[1719615084491,36.99,140.5,140.43,7.9649607]
[1719615087807,36.99,140.5,140.46,7.129]
[1719615092291,20.0,140.5,140.46,7.129]
[1719615092912,20.0,140.5,140.45,16.99]
[1719615092913,20.0,140.5,140.43,7.9649607]
[1719615093189,36.99,140.5,140.44,16.99]
[1719615093776,36.99,140.5,140.45,7.129]
[1719615094469,16.99,140.49,140.43,0.8359607]
[1719615094672,36.99,140.48,140.43,0.8359607]
[1719615095001,16.99,140.46,140.43,0.8359607]
[1719615097700,16.99,140.47,140.43,0.8359607]
[1719615097896,20.0,140.46,140.43,0.8359607]
[1719615098080,20.0,140.46,140.43,7.9649607]
[1719615098468,20.0,140.47,140.43,7.9649607]
[1719615100204,20.0,140.47,140.43,0.8359607]
[1719615100505,20.0,140.47,140.43,24.9549607]
[1719615100897,20.0,140.47,140.43,0.8359607]
[1719615101283,20.0,140.47,140.43,24.9549607]
[1719615101491,16.99,140.49,140.43,24.9549607]
[1719615101694,20.0,140.48,140.43,24.9549607]
[1719615102101,20.0,140.48,140.44,16.99]
[1719615107520,20.0,140.48,140.44,17.2384124]
[1719615109012,20.0,140.49,140.44,17.2384124]
[1719615115396,36.99,140.49,140.44,17.2384124]
[1719615115694,20.0,140.49,140.45,16.99]
[1719615115889,20.0,140.5,140.45,7.129]
[1719615116114,20.0,140.52,140.46,16.99]
[1719615116292,16.99,140.51,140.45,16.99]
[1719615116493,36.99,140.5,140.45,16.99]
[1719615116692,20.0,140.5,140.45,16.99]
[1719615116909,16.99,140.5,140.46,7.129]
[1719615117121,20.0,140.49,140.46,7.129]
[1719615120523,20.0,140.49,140.44,17.2384124]
[1719615120524,20.0,140.49,140.45,7.129]
[1719615120823,16.99,140.5,140.45,7.129]
[1719615121007,20.0,140.49,140.45,7.129]
[1719615122332,20.0,140.49,140.46,7.129]
[1719615122712,20.0,140.49,140.46,7.3774124]
[1719615133405,20.0,140.48,140.46,7.3774124]
[1719615133720,20.0,140.5,140.46,7.3774124]
[1719615134510,20.0,140.5,140.46,7.3914124]
[1719615134833,16.99,140.51,140.46,7.3914124]
[1719615135036,20.0,140.5,140.46,7.3914124]
[1719615139040,16.99,140.51,140.46,24.3814124]
[1719615139214,20.0,140.5,140.46,7.3914124]
[1719615139422,20.0,140.52,140.47,24.133]
[1719615141936,36.99,140.52,140.47,7.143]
[1719615143434,16.99,140.51,140.46,0.2484124]
[1719615143733,20.0,140.5,140.46,7.3914124]
[1719615143928,20.0,140.5,140.46,0.2484124]
[1719615144323,36.99,140.5,140.46,7.3914124]
[1719615148444,36.99,140.5,140.46,0.2484124]
[1719615148751,16.99,140.48,140.46,0.2484124]
[1719615148927,20.0,140.47,140.46,0.2484124]
[1719615169058,103.73424119,140.53,140.46,17.2384124]
[1719615169238,36.99,140.52,140.46,17.2384124]
[1719615169439,16.99,140.51,140.46,17.2384124]
[1719615169661,36.99,140.5,140.46,0.2484124]
[1719615169838,16.99,140.5,140.46,0.2484124]
[1719615170037,20.0,140.49,140.46,0.2484124]
[1719615171140,16.99,140.48,140.46,0.2484124]
[1719615171340,20.0,140.47,140.46,0.2484124]
[1719615179084,20.0,140.47,140.46,17.2384124]
[1719615179261,20.0,140.47,140.46,0.2484124]
[1719615181978,16.99,140.51,140.46,17.2384124]
[1719615182159,20.0,140.5,140.46,17.2384124]
[1719615182772,20.0,140.51,140.46,17.2384124]
[1719615183683,36.99,140.51,140.46,17.2384124]
[1719615188087,16.99,140.5,140.46,0.2484124]
[1719615188287,20.0,140.49,140.46,0.2484124]
[1719615190580,36.99,140.49,140.46,0.2484124]
[1719615191086,16.99,140.48,140.46,0.2484124]
[1719615191288,20.0,140.47,140.46,0.2484124]
[1719615200068,16.99,140.5,140.46,0.2484124]
[1719615200273,20.0,140.49,140.46,0.2484124]
[1719615200788,20.0,140.49,140.46,17.2384124]
[1719615201085,20.0,140.5,140.46,17.2384124]
[1719615207699,20.0,140.5,140.46,0.2484124]
[1719615208605,36.99,140.5,140.46,0.2484124]
[1719615218195,20.0,140.5,140.46,0.2484124]
[1719615220198,36.99,140.5,140.46,0.2484124]
[1719615220914,16.99,140.49,140.46,0.2484124]
[1719615221208,20.0,140.48,140.46,0.2484124]
[1719615221411,36.99,140.48,140.46,0.2484124]
[1719615224087,16.99,140.47,140.46,0.2484124]
[1719615224301,36.99,140.47,140.46,0.2484124]
[1719615227891,20.0,140.47,140.46,0.2484124]
[1719615241647,36.99,140.47,140.46,0.2484124]
[1719615242836,20.0,140.47,140.46,0.2484124]
[1719615243132,36.99,140.47,140.46,0.2484124]
[1719615245742,20.0,140.47,140.46,0.2484124]
[1719615251075,36.99,140.47,140.46,0.2484124]
[1719615252681,20.0,140.47,140.46,0.2484124]
[1719615253459,36.99,140.47,140.46,0.2484124]
[1719615253940,20.0,140.47,140.46,0.2484124]
[1719615254369,36.99,140.47,140.46,0.2484124]
[1719615268173,20.0,140.47,140.46,0.2484124]
[1719615268355,53.317,140.47,140.46,0.2484124]
[1719615268550,53.317,140.47,140.38,0.8405548]
[1719615268551,100.0,140.45,140.38,0.8405548]
[1719615268755,53.317,140.47,140.38,0.8405548]
[1719615268756,16.99,140.39,140.38,0.8405548]
[1719615269072,36.99,140.39,140.38,0.8405548]
[1719615274060,16.99,140.41,140.38,0.8405548]
[1719615274878,16.99,140.4,140.38,0.8405548]
[1719615275088,100.0,140.45,140.38,0.8405548]
[1719615275278,16.99,140.4,140.38,0.8405548]
[1719615275473,16.99,140.39,140.38,0.8405548]
[1719615275680,100.0,140.45,140.38,0.8405548]
[1719615275864,20.0,140.44,140.38,0.8405548]
[1719615276184,16.99,140.42,140.38,0.8405548]
[1719615276375,20.0,140.41,140.38,7.9835548]
[1719615276577,16.99,140.42,140.38,7.9835548]
[1719615276963,174.0465,140.49,140.38,14.2046548]
[1719615277278,16.99,140.43,140.38,31.1946548]
[1719615277485,106.0865,140.49,140.38,31.1946548]
[1719615277670,16.99,140.44,140.38,31.1946548]
[1719615277868,20.0,140.43,140.38,31.1946548]
[1719615278062,36.99,140.43,140.38,31.1946548]
[1719615278263,36.99,140.43,140.38,14.2046548]
[1719615278457,16.99,140.42,140.38,14.2046548]
[1719615278769,20.0,140.41,140.38,14.2046548]
[1719615279174,16.99,140.39,140.38,0.8405548]
[1719615279484,36.99,140.39,140.38,0.8405548]
[1719615283684,20.0,140.39,140.38,0.8405548]
[1719615284871,36.99,140.39,140.38,0.8405548]
[1719615290795,1.23935391,140.45,140.38,0.8405548]
[1719615290992,16.99,140.42,140.38,0.8405548]
[1719615292092,20.0,140.41,140.38,0.8405548]
[1719615297807,36.99,140.41,140.38,0.8405548]
[1719615297985,16.99,140.4,140.38,0.8405548]
[1719615300626,36.99,140.41,140.38,0.8405548]
[1719615301513,20.0,140.41,140.38,0.8405548]
[1719615301811,36.99,140.41,140.38,0.8405548]
[1719615302420,20.0,140.41,140.38,0.8405548]
[1719615302620,16.99,140.42,140.38,7.9835548]
[1719615302923,20.0,140.41,140.38,7.9835548]
[1719615304385,20.0,140.42,140.38,7.9835548]
[1719615304589,20.0,140.42,140.39,7.143]
[1719615304900,36.99,140.44,140.39,7.143]
[1719615305603,36.99,140.44,140.39,24.133]
[1719615306011,36.99,140.44,140.38,0.8405548]
[1719615306198,16.99,140.43,140.39,7.143]
[1719615306514,20.0,140.42,140.39,7.143]
[1719615306893,20.0,140.42,140.38,17.8305548]
[1719615307106,20.0,140.42,140.39,7.143]
[1719615308526,20.0,140.42,140.38,17.8305548]
[1719615308527,20.0,140.42,140.38,0.8405548]
[1719615308724,36.99,140.42,140.38,0.8405548]
[1719615313253,36.99,140.42,140.38,7.9835548]
[1719615313408,20.0,140.42,140.38,17.8305548]
[1719615313611,20.0,140.43,140.38,17.8305548]
[1719615314012,20.0,140.43,140.39,23.4129]
[1719615314342,20.0,140.43,140.39,30.5559]
[1719615315208,16.99,140.45,140.39,30.5559]
[1719615315414,20.0,140.44,140.39,30.5559]
[1719615316310,36.99,140.44,140.39,30.5559]
[1719615319029,36.99,140.44,140.39,13.5659]
[1719615320141,20.0,140.44,140.39,30.5559]
[1719615320341,16.99,140.44,140.39,30.5559]
[1719615320650,36.99,140.43,140.39,13.5659]
[1719615325747,20.0,140.43,140.39,13.5659]
[1719615329142,20.0,140.43,140.39,30.5559]
[1719615329532,16.99,140.44,140.39,30.5559]
[1719615329736,20.0,140.43,140.39,30.5559]
[1719615329941,36.99,140.43,140.38,0.8405548]
[1719615331051,36.99,140.43,140.39,7.143]
[1719615332249,20.0,140.43,140.39,7.143]
[1719615332623,20.0,140.43,140.39,24.133]
[1719615333354,20.0,140.43,140.4,33.6376]
[1719615333660,15.1998,140.5,140.41,16.99]
[1719615333827,16.99,140.48,140.4,16.6476]
[1719615334027,16.99,140.48,140.43,16.99]
[1719615334550,16.99,140.48,140.44,7.143]
[1719615334943,20.0,140.47,140.44,7.143]
[1719615335454,20.0,140.47,140.43,16.99]
[1719615335455,20.0,140.47,140.4,16.6476]
[1719615335655,20.0,140.47,140.44,7.143]
[1719615336455,20.0,140.47,140.4,16.6476]
[1719615336658,20.0,140.47,140.44,7.143]
[1719615338035,16.99,140.48,140.44,7.143]
[1719615338436,20.0,140.47,140.44,7.143]
[1719615340640,16.99,140.48,140.44,7.143]
[1719615340841,20.0,140.47,140.44,7.143]
[1719615343630,20.0,140.48,140.44,7.143]
[1719615346244,20.0,140.51,140.44,7.143]
[1719615346446,16.99,140.49,140.44,7.143]
[1719615346640,20.0,140.48,140.44,7.143]
[1719615346840,16.99,140.49,140.44,7.143]
[1719615347046,20.0,140.48,140.44,7.143]
[1719615348367,20.0,140.48,140.44,24.133]
[1719615350161,36.99,140.48,140.4,16.6476]
[1719615350339,36.99,140.48,140.42,16.99]
[1719615350576,16.99,140.47,140.42,16.99]
[1719615350767,20.0,140.46,140.42,16.99]
[1719615351151,20.0,140.46,140.43,7.143]
[1719615351461,16.99,140.48,140.43,7.143]
[1719615351638,20.0,140.47,140.43,7.143]
[1719615357146,16.99,140.48,140.43,7.143]
[1719615357364,20.0,140.47,140.43,7.143]
[1719615359082,20.0,140.47,140.44,16.99]
[1719615359266,16.99,140.49,140.44,24.133]
[1719615359468,20.0,140.5,140.44,24.133]
[1719615359469,20.0,140.48,140.44,24.133]
[1719615360474,20.0,140.48,140.44,7.143]
[1719615361050,16.99,140.49,140.44,7.143]
[1719615361252,20.0,140.48,140.44,7.143]
[1719615362564,36.99,140.48,140.4,16.6476]
[1719615362868,36.99,140.48,140.44,7.143]
[1719615363382,16.99,140.47,140.42,16.99]
[1719615363555,16.99,140.47,140.43,7.143]
[1719615363556,20.0,140.46,140.43,7.143]
[1719615363751,20.0,140.46,140.44,16.99]
[1719615363975,20.0,140.46,140.45,16.99]
[1719615364663,20.28599041,140.53,140.45,46.9796]
[1719615364849,106.3224,140.55,140.45,46.9796]
[1719615364850,3.72689041,140.54,140.48,16.99]
[1719615365174,16.99,140.53,140.48,16.99]
[1719615365756,16.99,140.53,140.48,7.143]
[1719615366276,36.99,140.52,140.46,16.99]
[1719615366977,36.99,140.52,140.48,7.143]
[1719615367864,36.99,140.52,140.46,16.99]
[1719615368071,36.99,140.52,140.47,7.143]
[1719615370283,16.99,140.49,140.45,22.8466]
[1719615370582,16.99,140.49,140.45,16.6464]
[1719615371864,16.99,140.49,140.43,24.133]
[1719615372173,16.99,140.49,140.43,7.143]
[1719615372386,16.99,140.49,140.42,6.2002]
[1719615372566,36.99,140.48,140.42,6.2002]
[1719615372867,36.99,140.48,140.42,23.1902]
[1719615373378,20.0,140.48,140.45,16.99]
[1719615373587,20.0,140.49,140.45,16.99]
[1719615374581,20.0,140.49,140.45,7.143]
[1719615376359,20.0,140.49,140.46,16.6464]
[1719615376563,16.99,140.51,140.46,16.6464]
[1719615376765,36.99,140.5,140.46,16.6464]
[1719615376977,20.0,140.49,140.46,16.6464]
[1719615378088,36.99,140.49,140.45,7.143]
[1719615378263,36.99,140.49,140.44,7.143]
[1719615378665,16.99,140.48,140.42,22.8466]
[1719615378877,20.0,140.49,140.42,22.8466]
[1719615378878,16.99,140.46,140.42,22.8466]
[1719615379261,16.99,140.46,140.42,29.9896]
[1719615379487,20.0,140.49,140.42,39.8366]
[1719615379686,16.99,140.48,140.43,16.99]
[1719615380004,20.0,140.47,140.43,16.99]
[1719615380475,20.0,140.47,140.43,7.143]
[1719615382490,36.99,140.47,140.43,7.143]
[1719615383464,16.99,140.45,140.39,6.5878]
[1719615383666,16.99,140.45,140.4,24.133]
[1719615384403,16.99,140.46,140.4,24.133]
[1719615384608,20.0,140.45,140.4,24.133]
[1719615386290,16.99,140.46,140.4,24.133]
[1719615386499,20.0,140.45,140.4,24.133]
[1719615388081,16.99,140.46,140.4,24.133]
[1719615388381,20.0,140.45,140.4,24.133]
[1719615390503,16.99,140.44,140.39,6.5878]
[1719615390684,20.0,140.45,140.39,6.5878]
[1719615390685,36.99,140.43,140.39,6.5878]
[1719615390881,16.99,140.43,140.39,6.5878]
[1719615391502,16.99,140.43,140.39,13.7308]
[1719615391679,16.99,140.44,140.39,6.5878]
[1719615391884,20.0,140.43,140.39,6.5878]
[1719615392086,20.0,140.43,140.4,16.99]
[1719615392616,20.0,140.44,140.41,7.143]
[1719615392816,36.99,140.45,140.41,7.143]
[1719615395585,36.99,140.45,140.39,6.5878]
[1719615395586,16.99,140.44,140.39,6.5878]
[1719615395784,16.99,140.44,140.4,7.143]
[1719615395785,20.0,140.43,140.4,7.143]
[1719615397999,20.0,140.44,140.4,7.143]
[1719615399811,36.99,140.44,140.4,7.143]
[1719615400295,16.99,140.43,140.39,6.5878]
[1719615400614,20.0,140.42,140.39,13.7308]
[1719615401904,20.0,140.42,140.38,16.2540548]
[1719615402105,20.0,140.42,140.38,23.3970548]
[1719615402490,20.0,140.42,140.38,16.2540548]
[1719615402687,16.99,140.41,140.38,16.2540548]
[1719615403145,16.99,140.41,140.38,0.8405548]
[1719615410497,100.0,140.44,140.38,0.8405548]
[1719615410697,16.99,140.42,140.38,0.8405548]
[1719615410892,20.0,140.41,140.38,0.8405548]
[1719615413705,20.0,140.42,140.38,24.9735548]
[1719615415038,20.0,140.42,140.38,0.8405548]
[1719615418206,20.0,140.45,140.38,0.8405548]
[1719615418405,16.99,140.43,140.38,0.8405548]
[1719615418622,20.0,140.42,140.38,0.8405548]
[1719615420630,36.99,140.42,140.38,0.8405548]
[1719615422703,20.0,140.42,140.38,0.8405548]
[1719615428039,16.99,140.4,140.38,0.8405548]
[1719615428216,36.99,140.39,140.38,0.8405548]
[1719615431527,136.99,140.39,140.38,0.8405548]
[1719615439238,36.99,140.39,140.38,0.8405548]
[1719615439436,20.0,140.39,140.38,0.8405548]
[1719615439740,36.99,140.39,140.38,0.8405548]
[1719615446849,100.0,140.35,140.28,22.0278]
[1719615447043,16.99,140.31,140.28,22.0278]
[1719615447225,167.96,140.35,140.28,22.0278]
[1719615447429,20.0,140.34,140.28,22.0278]
[1719615449258,16.99,140.32,140.28,22.0278]
[1719615449481,20.0,140.31,140.28,22.0278]
[1719615454551,36.99,140.34,140.28,39.0178]
[1719615454745,16.99,140.33,140.28,39.0178]
[1719615454948,20.0,140.32,140.28,39.0178]
[1719615457258,36.99,140.32,140.28,22.0278]
[1719615462765,20.0,140.32,140.28,22.0278]
[1719615464097,36.99,140.32,140.28,22.0278]
[1719615468509,20.0,140.32,140.28,22.0278]
[1719615471676,36.99,140.32,140.28,22.0278]
[1719615471876,20.0,140.32,140.28,22.0278]
[1719615472104,20.0,140.34,140.28,22.0278]
[1719615472307,16.99,140.33,140.28,39.0178]
[1719615472520,20.0,140.32,140.28,39.0178]
[1719615473087,20.0,140.36,140.28,39.0178]
[1719615473283,1.23927341,140.4,140.31,16.99]
[1719615473605,16.99,140.36,140.31,24.137]
[1719615474183,16.99,140.35,140.28,22.0278]
[1719615474419,16.99,140.35,140.3,16.99]
[1719615475235,20.0,140.34,140.3,24.137]
[1719615476024,20.0,140.34,140.28,22.0278]
[1719615476227,36.99,140.34,140.28,22.0278]
[1719615476432,36.99,140.34,140.29,24.137]
[1719615476729,16.99,140.33,140.29,7.147]
[1719615476923,36.99,140.34,140.29,24.137]
[1719615480448,20.0,140.34,140.29,24.137]
[1719615480620,16.99,140.32,140.28,22.0278]
[1719615480933,16.99,140.32,140.28,29.1748]
[1719615481116,16.99,140.32,140.28,22.0278]
[1719615481511,16.99,140.32,140.28,29.1748]
[1719615482336,16.99,140.33,140.28,29.1748]
[1719615482528,20.0,140.32,140.28,29.1748]
[1719615483505,16.99,140.34,140.28,46.1648]
[1719615483701,20.0,140.33,140.28,46.1648]
[1719615485317,20.0,140.33,140.28,22.0278]
[1719615485516,36.99,140.33,140.28,39.0178]
[1719615485751,36.99,140.33,140.28,22.0278]
[1719615486027,36.99,140.33,140.28,39.0178]
[1719615486329,36.99,140.33,140.28,46.1648]
[1719615487533,20.0,140.33,140.28,46.1648]
[1719615487829,36.99,140.33,140.28,46.1648]
[1719615488321,36.99,140.33,140.29,7.147]
[1719615488519,36.99,140.33,140.28,22.0278]
[1719615488835,20.0,140.33,140.29,18.41531101]
[1719615489133,20.0,140.34,140.3,1.42528445]
[1719615489343,20.0,140.34,140.3,8.57228445]
[1719615489529,16.99,140.35,140.3,8.57228445]
[1719615489730,20.0,140.34,140.3,8.57228445]
[1719615492814,36.99,140.34,140.3,8.57228445]
[1719615493826,20.0,140.34,140.3,8.57228445]
[1719615494028,20.0,140.37,140.3,8.57228445]
[1719615494646,16.99,140.35,140.31,7.147]
[1719615494823,20.0,140.34,140.31,7.147]
[1719615495146,20.0,140.34,140.32,1.42512387]
[1719615495442,20.0,140.35,140.32,1.42512387]
[1719615495819,20.0,140.36,140.32,8.57212387]
[1719615496144,18.87555438,140.42,140.35,16.99]
[1719615496347,16.99,140.4,140.36,7.147]
[1719615496548,16.99,140.41,140.36,18.41471668]
[1719615497045,16.99,140.42,140.37,7.147]
[1719615497932,20.0,140.41,140.37,7.147]
[1719615498241,36.99,140.41,140.37,7.147]
[1719615502718,20.0,140.41,140.37,7.147]
[1719615503051,16.99,140.42,140.37,7.147]
[1719615503239,20.0,140.41,140.37,7.147]